[Event "*** Titled Tuesday 3|2 Blitz"]
[Site "Chess.com"]
[Date "2017.06.06"]
[Round "4"]
[White "amurdercastle"]
[Black "fidetrainerNET"]
[Result "1-0"]
[WhiteElo "2282"]
[BlackElo "2115"]
[TimeControl "180+2"]
[EndTime "14:40:13 PDT"]
[Termination "amurdercastle won by resignation"]

1. d4 {[%clk 0:03:02]} 1... Nf6 {[%clk 0:03:00]} 2. c4 {[%clk 0:03:01]} 2... e6
{[%clk 0:03:01.5]} 3. Nf3 {[%clk 0:02:57.9]} 3... d5 {[%clk 0:03:03.4]} 4. g3
{[%clk 0:02:53.8]} 4... c5 {[%clk 0:03:03.8]} 5. cxd5 {[%clk 0:02:42.7]} 5...
exd5 {[%clk 0:03:03.8]} 6. Bg2 {[%clk 0:02:43.9]} 6... Nc6 {[%clk 0:03:04.7]} 7.
O-O {[%clk 0:02:44.6]} 7... cxd4 {[%clk 0:03:02.4]} 8. Nxd4 {[%clk 0:02:46.5]}
8... Bc5 {[%clk 0:03:03.5]} 9. Nb3 {[%clk 0:02:37]} 9... Bb6 {[%clk 0:03:04.2]}
10. Bg5 {[%clk 0:02:36.6]} 10... Be6 {[%clk 0:03:02.9]} 11. Bxf6 {[%clk
0:02:32.9]} 11... Qxf6 {[%clk 0:03:01.3]} 12. Nc3 {[%clk 0:02:31]} 12... Rd8
{[%clk 0:02:57.5]} 13. e3 {[%clk 0:02:31.8]} 13... O-O {[%clk 0:02:53.1]} 14.
Nb5 {[%clk 0:02:32.4]} 14... Ne5 {[%clk 0:02:52.3]} 15. N5d4 {[%clk 0:02:29.5]}
15... h5 {[%clk 0:02:51.6]} 16. h3 {[%clk 0:02:25.8]} 16... h4 {[%clk
0:02:51.6]} 17. g4 {[%clk 0:02:26.1]} 17... Nc4 {[%clk 0:02:51.9]} 18. Rb1
{[%clk 0:02:20.9]} 18... Qe5 {[%clk 0:02:40.5]} 19. Qd3 {[%clk 0:02:13.9]} 19...
g6 {[%clk 0:02:32.1]} 20. Rfe1 {[%clk 0:02:06.2]} 20... a5 {[%clk 0:02:25.8]}
21. f4 {[%clk 0:01:55.4]} 21... Qd6 {[%clk 0:02:24.9]} 22. a4 {[%clk 0:01:44.1]}
22... Bd7 {[%clk 0:02:24.1]} 23. Nd2 {[%clk 0:01:41.1]} 23... Nxd2 {[%clk
0:02:21.5]} 24. Qxd2 {[%clk 0:01:43]} 24... Bxa4 {[%clk 0:02:21.5]} 25. Qf2
{[%clk 0:01:43.1]} 25... Bc6 {[%clk 0:02:17.2]} 26. Rbd1 {[%clk 0:01:36.3]}
26... Qe7 {[%clk 0:02:13.3]} 27. f5 {[%clk 0:01:34.6]} 27... g5 {[%clk
0:02:10.5]} 28. Rc1 {[%clk 0:01:30.4]} 28... Rc8 {[%clk 0:02:09.4]} 29. Qd2
{[%clk 0:01:27.4]} 29... Qe5 {[%clk 0:02:07.2]} 30. Nf3 {[%clk 0:01:26.7]} 30...
Qe7 {[%clk 0:02:02.5]} 31. Kh1 {[%clk 0:01:25.1]} 31... f6 {[%clk 0:02:02.4]}
32. Nd4 {[%clk 0:01:25]} 32... Qe5 {[%clk 0:02:00]} 33. Ne6 {[%clk 0:01:21.5]}
33... Rfe8 {[%clk 0:02:00.5]} 34. Rcd1 {[%clk 0:01:19.9]} 34... Rxe6 {[%clk
0:01:53.8]} 35. fxe6 {[%clk 0:01:19.6]} 35... Rd8 {[%clk 0:01:48.9]} 36. Qd3
{[%clk 0:01:18.1]} 36... Kg7 {[%clk 0:01:47.4]} 37. Qf5 {[%clk 0:01:18.1]} 37...
Rd6 {[%clk 0:01:36.6]} 38. e4 {[%clk 0:01:07.5]} 38... Qxf5 {[%clk 0:01:03.7]}
39. gxf5 {[%clk 0:01:00]} 39... d4 {[%clk 0:00:57.1]} 40. e5 {[%clk 0:00:55]}
40... fxe5 {[%clk 0:00:48.5]} 41. Bxc6 {[%clk 0:00:55]} 41... bxc6 {[%clk
0:00:46.7]} 42. Rxe5 {[%clk 0:00:56.3]} 42... Rd8 {[%clk 0:00:43.1]} 43. e7
{[%clk 0:00:53.8]} 43... Re8 {[%clk 0:00:43.4]} 44. Re6 {[%clk 0:00:55.3]} 44...
Kf7 {[%clk 0:00:42.2]} 45. Rde1 {[%clk 0:00:56.3]} 45... d3 {[%clk 0:00:42.9]}
46. Rd6 {[%clk 0:00:40.7]} 46... Rxe7 {[%clk 0:00:39.7]} 47. Rxe7+ {[%clk
0:00:42.6]} 47... Kxe7 {[%clk 0:00:40.2]} 48. Rxd3 {[%clk 0:00:44.5]} 48... Kf6
{[%clk 0:00:41]} 49. Rf3 {[%clk 0:00:44.1]} 49... Bd4 {[%clk 0:00:38.5]} 50. b3
{[%clk 0:00:44.7]} 50... Ke7 {[%clk 0:00:31.3]} 51. Kg2 {[%clk 0:00:45.5]} 51...
Bf6 {[%clk 0:00:31.6]} 52. Rd3 {[%clk 0:00:45.5]} 52... c5 {[%clk 0:00:27]} 53.
Kf3 {[%clk 0:00:45.6]} 53... Bd4 {[%clk 0:00:27.3]} 54. Kg4 {[%clk 0:00:40.9]}
54... Kf6 {[%clk 0:00:27.6]} 55. Rd2 {[%clk 0:00:42]} 55... Ke5 {[%clk
0:00:27.7]} 56. Re2+ {[%clk 0:00:42.6]} 56... Kd5 {[%clk 0:00:26.8]} 57. Re8
{[%clk 0:00:43.3]} 57... c4 {[%clk 0:00:26]} 58. Rd8+ {[%clk 0:00:44.2]} 58...
Ke4 {[%clk 0:00:26.7]} 59. bxc4 {[%clk 0:00:43.8]} 59... Bf6 {[%clk 0:00:21.4]}
60. Ra8 {[%clk 0:00:41.5]} 60... Kd4 {[%clk 0:00:20.9]} 61. Rxa5 {[%clk
0:00:42.8]} 61... Kxc4 {[%clk 0:00:22.8]} 62. Ra6 {[%clk 0:00:44.7]} 62... Bd8
{[%clk 0:00:21.8]} 63. f6 {[%clk 0:00:45.7]} 63... Kb5 {[%clk 0:00:23.5]} 64.
Re6 {[%clk 0:00:46.5]} 64... Kc5 {[%clk 0:00:22.6]} 65. f7 {[%clk 0:00:48.4]}
1-0

[Event "*** Titled Tuesday 3|2 Blitz"]
[Site "Chess.com"]
[Date "2017.06.06"]
[Round "4"]
[White "IMRosen"]
[Black "H16"]
[Result "0-1"]
[WhiteElo "2228"]
[BlackElo "2279"]
[TimeControl "180+2"]
[EndTime "14:40:14 PDT"]
[Termination "H16 won by resignation"]

1. d4 {[%clk 0:03:02]} 1... Nf6 {[%clk 0:03:00.1]} 2. Bf4 {[%clk 0:03:01.2]}
2... g6 {[%clk 0:02:54.8]} 3. Nc3 {[%clk 0:02:59.5]} 3... d5 {[%clk 0:02:54.7]}
4. Qd2 {[%clk 0:03:00.3]} 4... Bg7 {[%clk 0:02:55.1]} 5. O-O-O {[%clk
0:02:57.2]} 5... O-O {[%clk 0:02:54.2]} 6. Bh6 {[%clk 0:02:57.7]} 6... c5 {[%clk
0:02:33]} 7. Bxg7 {[%clk 0:02:57.4]} 7... Kxg7 {[%clk 0:02:33.7]} 8. dxc5 {[%clk
0:02:58.7]} 8... Nc6 {[%clk 0:02:24.6]} 9. Nf3 {[%clk 0:02:55.2]} 9... Qa5
{[%clk 0:02:18.8]} 10. Kb1 {[%clk 0:02:48.2]} 10... Qxc5 {[%clk 0:02:11.9]} 11.
e3 {[%clk 0:02:48.6]} 11... Bg4 {[%clk 0:02:04.2]} 12. h3 {[%clk 0:02:36.2]}
12... Bxf3 {[%clk 0:02:01.6]} 13. gxf3 {[%clk 0:02:38.1]} 13... Rfd8 {[%clk
0:02:02.7]} 14. Bd3 {[%clk 0:02:35.7]} 14... Rab8 {[%clk 0:01:35.1]} 15. h4
{[%clk 0:02:34.4]} 15... h5 {[%clk 0:01:35.8]} 16. f4 {[%clk 0:02:20.6]} 16...
e6 {[%clk 0:01:36.9]} 17. Rhg1 {[%clk 0:02:10.4]} 17... b5 {[%clk 0:01:31.5]}
18. Rg5 {[%clk 0:01:55.9]} 18... b4 {[%clk 0:00:58.8]} 19. Ne2 {[%clk 0:01:56]}
19... a5 {[%clk 0:00:37.4]} 20. Rdg1 {[%clk 0:01:52.2]} 20... Kf8 {[%clk
0:00:33.1]} 21. f3 {[%clk 0:01:04.1]} 21... a4 {[%clk 0:00:33.8]} 22. Nc1 {[%clk
0:01:00.4]} 22... Qb6 {[%clk 0:00:28.6]} 23. Qe2 {[%clk 0:00:55.1]} 23... Ke7
{[%clk 0:00:26.8]} 24. Qe1 {[%clk 0:00:38.3]} 24... Qa7 {[%clk 0:00:27]} 25.
Bxg6 {[%clk 0:00:37.4]} 25... fxg6 {[%clk 0:00:27.6]} 26. Rxg6 {[%clk
0:00:39.3]} 26... Rf8 {[%clk 0:00:28.6]} 27. R1g5 {[%clk 0:00:22.8]} 27... Rf7
{[%clk 0:00:25.9]} 28. Rg7 {[%clk 0:00:16.8]} 28... Rf8 {[%clk 0:00:26.1]} 29.
Nd3 {[%clk 0:00:13.7]} 29... b3 {[%clk 0:00:22.6]} 30. cxb3 {[%clk 0:00:11.7]}
30... axb3 {[%clk 0:00:24.5]} 31. a3 {[%clk 0:00:13.3]} 31... Rxg7 {[%clk
0:00:22.7]} 32. Rxg7+ {[%clk 0:00:13.8]} 32... Rf7 {[%clk 0:00:24.6]} 33. Rg1
{[%clk 0:00:13.7]} 33... Nd7 {[%clk 0:00:20.9]} 34. Qc1 {[%clk 0:00:07.6]} 34...
Qb6 {[%clk 0:00:20.8]} 35. Rg5 {[%clk 0:00:05.4]} 35... Na5 {[%clk 0:00:18]} 36.
Rxh5 {[%clk 0:00:05.9]} 36... Nc4 {[%clk 0:00:19.1]} 37. Rg5 {[%clk 0:00:03.4]}
37... Nxe3 {[%clk 0:00:15.5]} 38. h5 {[%clk 0:00:03.8]} 38... Nc4 {[%clk
0:00:16.5]} 39. h6 {[%clk 0:00:04.7]} 39... Qd4 {[%clk 0:00:17.6]} 40. Ne5
{[%clk 0:00:04.8]} 40... Ndxe5 {[%clk 0:00:16.5]} 41. fxe5 {[%clk 0:00:06.7]}
41... Qd3+ {[%clk 0:00:15]} 42. Ka1 {[%clk 0:00:07.8]} 42... Qxf3 {[%clk
0:00:07.1]} 43. Rg7 {[%clk 0:00:08.2]} 43... Rxg7 {[%clk 0:00:06.9]} 44. hxg7
{[%clk 0:00:10.1]} 44... Qg3 {[%clk 0:00:07.7]} 45. a4 {[%clk 0:00:04.6]} 45...
Qxg7 {[%clk 0:00:08]} 46. Qh1 {[%clk 0:00:05.9]} 46... Qxe5 {[%clk 0:00:06.8]}
47. Qh4+ {[%clk 0:00:05.7]} 47... Kd7 {[%clk 0:00:06.7]} 48. Qf2 {[%clk
0:00:06.4]} 48... Qe3 {[%clk 0:00:06.4]} 49. Qf1 {[%clk 0:00:04.6]} 49... Kc6
{[%clk 0:00:03.9]} 50. a5 {[%clk 0:00:04.5]} 50... Qd2 {[%clk 0:00:04.9]} 51.
Qb1 {[%clk 0:00:04.8]} 51... Qxb2+ {[%clk 0:00:05.6]} 52. Qxb2 {[%clk
0:00:05.8]} 52... Nxb2 {[%clk 0:00:07.5]} 53. Kxb2 {[%clk 0:00:07.7]} 53... Kb5
{[%clk 0:00:09.4]} 54. Kxb3 {[%clk 0:00:09.6]} 54... Kxa5 {[%clk 0:00:10]} 55.
Kc3 {[%clk 0:00:11.5]} 55... Kb5 {[%clk 0:00:10.7]} 56. Kd4 {[%clk 0:00:13.4]}
56... Kc6 {[%clk 0:00:12.3]} 57. Ke5 {[%clk 0:00:15.3]} 57... Kd7 {[%clk
0:00:13.9]} 58. Kd4 {[%clk 0:00:17.2]} 58... Kd6 {[%clk 0:00:15.8]} 0-1

[Event "*** Titled Tuesday 3|2 Blitz"]
[Site "Chess.com"]
[Date "2017.06.06"]
[Round "4"]
[White "Grootneus"]
[Black "Makalexa"]
[Result "0-1"]
[WhiteElo "2053"]
[BlackElo "2195"]
[TimeControl "180+2"]
[EndTime "14:40:51 PDT"]
[Termination "Makalexa won by resignation"]

1. e4 {[%clk 0:03:02]} 1... e5 {[%clk 0:02:59.7]} 2. Nf3 {[%clk 0:03:02.7]} 2...
Nc6 {[%clk 0:03:01.2]} 3. Bb5 {[%clk 0:03:04.3]} 3... a6 {[%clk 0:03:00.8]} 4.
Ba4 {[%clk 0:03:05.9]} 4... Nf6 {[%clk 0:03:00.8]} 5. d3 {[%clk 0:03:07.5]} 5...
b5 {[%clk 0:02:59.6]} 6. Bb3 {[%clk 0:03:08.5]} 6... Bc5 {[%clk 0:03:00]} 7. a4
{[%clk 0:03:10]} 7... Bb7 {[%clk 0:03:00]} 8. Bg5 {[%clk 0:03:08.3]} 8... h6
{[%clk 0:02:56.2]} 9. Bxf6 {[%clk 0:03:02.6]} 9... Qxf6 {[%clk 0:02:53.2]} 10.
axb5 {[%clk 0:03:04.2]} 10... axb5 {[%clk 0:02:53.5]} 11. Rxa8+ {[%clk
0:03:06.1]} 11... Bxa8 {[%clk 0:02:55]} 12. Nc3 {[%clk 0:03:07.8]} 12... b4
{[%clk 0:02:50.7]} 13. Nd5 {[%clk 0:03:08.8]} 13... Qd8 {[%clk 0:02:51]} 14. O-O
{[%clk 0:03:02]} 14... O-O {[%clk 0:02:50.7]} 15. Qd2 {[%clk 0:01:57.6]} 15...
d6 {[%clk 0:02:40.6]} 16. Ra1 {[%clk 0:01:55.7]} 16... Qd7 {[%clk 0:02:35]} 17.
Bc4 {[%clk 0:01:46]} 17... Qg4 {[%clk 0:02:22.1]} 18. Nxc7 {[%clk 0:01:38.3]}
18... Bb7 {[%clk 0:02:14.9]} 19. h3 {[%clk 0:01:36.4]} 19... Qg6 {[%clk
0:02:01.8]} 20. Nd5 {[%clk 0:01:35.5]} 20... Kh8 {[%clk 0:01:56.2]} 21. Nh4
{[%clk 0:01:16.3]} 21... Qh5 {[%clk 0:01:45.9]} 22. Nf5 {[%clk 0:01:16.1]} 22...
Nd4 {[%clk 0:01:41.9]} 23. Nxd4 {[%clk 0:01:03.1]} 23... Bxd5 {[%clk 0:01:36.4]}
24. Bxd5 {[%clk 0:00:58.9]} 24... Bxd4 {[%clk 0:01:36.1]} 25. c3 {[%clk
0:00:43.1]} 25... bxc3 {[%clk 0:01:33.8]} 26. bxc3 {[%clk 0:00:45]} 26... Bb6
{[%clk 0:01:12.6]} 27. Ra6 {[%clk 0:00:31.4]} 27... Rb8 {[%clk 0:01:08.3]} 28.
Kh2 {[%clk 0:00:21.6]} 28... f5 {[%clk 0:01:02.3]} 29. exf5 {[%clk 0:00:17.4]}
29... Qxf5 {[%clk 0:01:01.6]} 30. Be4 {[%clk 0:00:17]} 30... Qf6 {[%clk
0:00:57.8]} 31. Qe2 {[%clk 0:00:16.2]} 31... Bxf2 {[%clk 0:00:56.2]} 32. Ra1
{[%clk 0:00:10.6]} 32... Bg3+ {[%clk 0:00:43.5]} 33. Kg1 {[%clk 0:00:06.3]}
33... Bf4 {[%clk 0:00:42.2]} 34. Rf1 {[%clk 0:00:06.7]} 34... Qg5 {[%clk
0:00:39.8]} 35. c4 {[%clk 0:00:07]} 35... Be3+ {[%clk 0:00:39.9]} 36. Kh1 {[%clk
0:00:06.5]} 36... Bd4 {[%clk 0:00:36.8]} 37. Qf3 {[%clk 0:00:07.4]} 37... Qf4
{[%clk 0:00:24.4]} 38. Qxf4 {[%clk 0:00:06.9]} 38... exf4 {[%clk 0:00:25.7]} 39.
Kh2 {[%clk 0:00:06]} 39... Be3 {[%clk 0:00:25.4]} 40. h4 {[%clk 0:00:07.1]}
40... g5 {[%clk 0:00:23.8]} 41. hxg5 {[%clk 0:00:08.2]} 41... hxg5 {[%clk
0:00:25.7]} 42. Kh3 {[%clk 0:00:10.1]} 42... Kg7 {[%clk 0:00:26.5]} 43. Kg4
{[%clk 0:00:11.5]} 43... Rh8 {[%clk 0:00:21.2]} 44. Ra1 {[%clk 0:00:05.4]} 44...
Kf6 {[%clk 0:00:21.3]} 45. Ra6 {[%clk 0:00:05]} 45... Rh4+ {[%clk 0:00:20.9]}
46. Kf3 {[%clk 0:00:05.9]} 46... Ke5 {[%clk 0:00:22.1]} 47. Ra5+ {[%clk
0:00:05.2]} 47... Ke6 {[%clk 0:00:22.4]} 48. Bd5+ {[%clk 0:00:04.4]} 48... Kf6
{[%clk 0:00:22.8]} 49. Be4 {[%clk 0:00:04.7]} 49... g4+ {[%clk 0:00:22.8]} 50.
Ke2 {[%clk 0:00:05.3]} 50... Rh8 {[%clk 0:00:20.9]} 51. Rf5+ {[%clk 0:00:05.5]}
51... Ke6 {[%clk 0:00:21.2]} 52. Rd5 {[%clk 0:00:07]} 52... g3 {[%clk
0:00:20.7]} 53. Bf5+ {[%clk 0:00:07.4]} 53... Ke7 {[%clk 0:00:21.5]} 54. Be4
{[%clk 0:00:08.8]} 54... Rh1 {[%clk 0:00:18.6]} 55. Kf3 {[%clk 0:00:08.9]} 55...
Rf1+ {[%clk 0:00:18.8]} 56. Kg4 {[%clk 0:00:10.5]} 56... Rh1 {[%clk 0:00:16.5]}
57. Kf3 {[%clk 0:00:11.2]} 57... Rh8 {[%clk 0:00:16.6]} 58. Rh5 {[%clk
0:00:11.1]} 58... Rxh5 {[%clk 0:00:16.4]} 59. Kg4 {[%clk 0:00:11.4]} 59... Rh8
{[%clk 0:00:17]} 60. Kf3 {[%clk 0:00:12.5]} 60... Rf8 {[%clk 0:00:17.6]} 61. Kg4
{[%clk 0:00:14.4]} 61... Kf6 {[%clk 0:00:18]} 62. Kf3 {[%clk 0:00:14.7]} 62...
Ke5 {[%clk 0:00:19]} 63. c5 {[%clk 0:00:16.6]} 0-1

[Event "*** Titled Tuesday 3|2 Blitz"]
[Site "Chess.com"]
[Date "2017.06.06"]
[Round "4"]
[White "XDPS"]
[Black "andreimacovei2000"]
[Result "1/2-1/2"]
[WhiteElo "2516"]
[BlackElo "2390"]
[TimeControl "180+2"]
[EndTime "14:40:53 PDT"]
[Termination "Game drawn - insufficient material"]

1. e4 {[%clk 0:03:02]} 1... c5 {[%clk 0:02:58.7]} 2. Nf3 {[%clk 0:03:02.4]} 2...
d6 {[%clk 0:03:00.2]} 3. Bb5+ {[%clk 0:03:02.3]} 3... Bd7 {[%clk 0:03:00]} 4.
Bxd7+ {[%clk 0:03:01.5]} 4... Qxd7 {[%clk 0:03:01.9]} 5. O-O {[%clk 0:03:02.3]}
5... Nf6 {[%clk 0:03:01.9]} 6. Qe2 {[%clk 0:03:03.1]} 6... Nc6 {[%clk
0:03:00.7]} 7. c3 {[%clk 0:03:03.6]} 7... e6 {[%clk 0:03:01.5]} 8. Rd1 {[%clk
0:03:04.2]} 8... Be7 {[%clk 0:03:02.3]} 9. d4 {[%clk 0:03:05]} 9... cxd4 {[%clk
0:03:03.6]} 10. cxd4 {[%clk 0:03:06.9]} 10... d5 {[%clk 0:03:05]} 11. e5 {[%clk
0:03:08.4]} 11... Ne4 {[%clk 0:03:06.4]} 12. Ne1 {[%clk 0:03:10.1]} 12... f6
{[%clk 0:02:31.2]} 13. f3 {[%clk 0:03:10]} 13... Ng5 {[%clk 0:02:32]} 14. Nc3
{[%clk 0:03:01.6]} 14... O-O {[%clk 0:02:32.3]} 15. f4 {[%clk 0:03:02.1]} 15...
Nf7 {[%clk 0:02:07]} 16. Be3 {[%clk 0:03:02.5]} 16... Nh6 {[%clk 0:02:07.1]} 17.
Rac1 {[%clk 0:02:56.4]} 17... Nf5 {[%clk 0:02:06.3]} 18. Bf2 {[%clk 0:02:56.1]}
18... fxe5 {[%clk 0:02:07.6]} 19. dxe5 {[%clk 0:02:56.4]} 19... Rac8 {[%clk
0:02:04.7]} 20. Kh1 {[%clk 0:02:53.8]} 20... Na5 {[%clk 0:01:47.7]} 21. Nf3
{[%clk 0:02:48.9]} 21... Nc6 {[%clk 0:01:44.9]} 22. h3 {[%clk 0:02:26]} 22...
Qe8 {[%clk 0:01:45.9]} 23. g4 {[%clk 0:02:19.8]} 23... Nh6 {[%clk 0:01:40]} 24.
Bg3 {[%clk 0:02:20.2]} 24... Qf7 {[%clk 0:01:26.1]} 25. Rf1 {[%clk 0:02:17.8]}
25... Qg6 {[%clk 0:01:26.2]} 26. Rcd1 {[%clk 0:02:16.2]} 26... Rfd8 {[%clk
0:01:26.1]} 27. Bh2 {[%clk 0:02:12.2]} 27... b6 {[%clk 0:01:23.1]} 28. Nb5
{[%clk 0:02:08.1]} 28... Bc5 {[%clk 0:01:18.2]} 29. a3 {[%clk 0:02:07.7]} 29...
d4 {[%clk 0:01:11.2]} 30. Nh4 {[%clk 0:02:02.8]} 30... d3 {[%clk 0:01:08]} 31.
Qf3 {[%clk 0:02:00]} 31... Qf7 {[%clk 0:01:07.8]} 32. Rxd3 {[%clk 0:01:55.7]}
32... a6 {[%clk 0:01:01.7]} 33. Nd6 {[%clk 0:01:50.6]} 33... Bxd6 {[%clk
0:00:57.5]} 34. exd6 {[%clk 0:01:52.5]} 34... Na5 {[%clk 0:00:34.9]} 35. f5
{[%clk 0:01:53]} 35... exf5 {[%clk 0:00:35.5]} 36. Nxf5 {[%clk 0:01:54.1]} 36...
Nxf5 {[%clk 0:00:35.8]} 37. Qxf5 {[%clk 0:01:56]} 37... Qxf5 {[%clk 0:00:36]}
38. Rxf5 {[%clk 0:01:57.9]} 38... Rd7 {[%clk 0:00:36.5]} 39. b3 {[%clk
0:01:41.4]} 39... b5 {[%clk 0:00:35]} 40. b4 {[%clk 0:01:40.1]} 40... Nc4 {[%clk
0:00:35.7]} 41. Rc5 {[%clk 0:01:41.7]} 41... Rcd8 {[%clk 0:00:34.1]} 42. Rc6
{[%clk 0:01:42.1]} 42... Ra8 {[%clk 0:00:34.5]} 43. Bg3 {[%clk 0:01:22.1]} 43...
Kf7 {[%clk 0:00:35.3]} 44. Rc5 {[%clk 0:01:20.6]} 44... Ke6 {[%clk 0:00:32.3]}
45. Kh2 {[%clk 0:01:17.9]} 45... Rad8 {[%clk 0:00:27.2]} 46. Rc6 {[%clk
0:01:17.9]} 46... Ra8 {[%clk 0:00:20.4]} 47. Rc5 {[%clk 0:01:19]} 47... h6
{[%clk 0:00:21.1]} 48. g5 {[%clk 0:01:19.1]} 48... h5 {[%clk 0:00:20.7]} 49. g6
{[%clk 0:01:20.5]} 49... Rad8 {[%clk 0:00:19.4]} 50. Rxh5 {[%clk 0:01:20.2]}
50... Nxd6 {[%clk 0:00:20.3]} 51. Re5+ {[%clk 0:01:21.3]} 51... Kf6 {[%clk
0:00:21.4]} 52. Red5 {[%clk 0:01:22.5]} 52... Ke6 {[%clk 0:00:22.6]} 53. Re5+
{[%clk 0:01:23.6]} 53... Kf6 {[%clk 0:00:23.7]} 54. Red5 {[%clk 0:01:14.3]}
54... Ke6 {[%clk 0:00:24.8]} 55. Bh4 {[%clk 0:01:15.9]} 55... Nf5 {[%clk
0:00:22.1]} 56. Rxd7 {[%clk 0:01:03]} 56... Rxd7 {[%clk 0:00:24]} 57. Rxd7
{[%clk 0:01:04.7]} 57... Kxd7 {[%clk 0:00:25]} 58. Bg5 {[%clk 0:01:06.6]} 58...
Ke6 {[%clk 0:00:26.2]} 59. h4 {[%clk 0:01:08.1]} 59... Nd4 {[%clk 0:00:20.2]}
60. Kh3 {[%clk 0:01:05.8]} 60... Kf5 {[%clk 0:00:21.5]} 61. Be3 {[%clk
0:01:05.7]} 61... Nc2 {[%clk 0:00:21.8]} 62. Bc1 {[%clk 0:01:04.2]} 62... Kxg6
{[%clk 0:00:23.1]} 63. Kg4 {[%clk 0:01:05.8]} 63... Nd4 {[%clk 0:00:23.8]} 64.
h5+ {[%clk 0:01:07.3]} 64... Kf7 {[%clk 0:00:24.4]} 65. Bb2 {[%clk 0:01:07.7]}
65... Nc6 {[%clk 0:00:24.7]} 66. Kf5 {[%clk 0:01:08.2]} 66... a5 {[%clk
0:00:25.5]} 67. Bc3 {[%clk 0:01:08.5]} 67... axb4 {[%clk 0:00:26.4]} 68. axb4
{[%clk 0:01:10.4]} 68... Ne7+ {[%clk 0:00:26.4]} 69. Ke5 {[%clk 0:01:10.9]}
69... Kg8 {[%clk 0:00:26.3]} 70. Ke6 {[%clk 0:01:10.8]} 70... Nc6 {[%clk
0:00:26.2]} 71. Kd7 {[%clk 0:01:10.6]} 71... Nxb4 {[%clk 0:00:24.2]} 72. Bxb4
{[%clk 0:01:09.6]} 72... Kh7 {[%clk 0:00:25.5]} 73. Bd2 {[%clk 0:01:09.9]} 73...
g6 {[%clk 0:00:26.9]} 74. h6 {[%clk 0:01:11.1]} 74... b4 {[%clk 0:00:28.3]} 75.
Bxb4 {[%clk 0:00:51.2]} 75... Kxh6 {[%clk 0:00:29.2]} 76. Ke6 {[%clk 0:00:53.1]}
76... g5 {[%clk 0:00:29.6]} 77. Bd2 {[%clk 0:00:54.7]} 77... Kg6 {[%clk
0:00:30.5]} 78. Bxg5 {[%clk 0:00:56.6]} 1/2-1/2

[Event "*** Titled Tuesday 3|2 Blitz"]
[Site "Chess.com"]
[Date "2017.06.06"]
[Round "4"]
[White "x-3738459472"]
[Black "GrigorGrigorov"]
[Result "1/2-1/2"]
[WhiteElo "2460"]
[BlackElo "2625"]
[TimeControl "180+2"]
[EndTime "14:40:57 PDT"]
[Termination "Game drawn by agreement"]

1. e4 {[%clk 0:03:02]} 1... c5 {[%clk 0:02:59.9]} 2. Nc3 {[%clk 0:03:03.9]} 2...
Nc6 {[%clk 0:02:56.3]} 3. Bb5 {[%clk 0:03:04.4]} 3... Nd4 {[%clk 0:02:51.3]} 4.
Nf3 {[%clk 0:03:05]} 4... e6 {[%clk 0:02:44.8]} 5. Bc4 {[%clk 0:02:55.2]} 5...
a6 {[%clk 0:02:40]} 6. d3 {[%clk 0:02:54.8]} 6... Nf6 {[%clk 0:02:22.5]} 7. O-O
{[%clk 0:02:54.9]} 7... b5 {[%clk 0:02:15.1]} 8. Bb3 {[%clk 0:02:54.6]} 8...
Nxb3 {[%clk 0:02:14.6]} 9. axb3 {[%clk 0:02:56.5]} 9... Bb7 {[%clk 0:02:16.1]}
10. e5 {[%clk 0:02:54.9]} 10... Nd5 {[%clk 0:02:12.8]} 11. Ne4 {[%clk
0:02:56.1]} 11... Be7 {[%clk 0:02:02.3]} 12. Bd2 {[%clk 0:02:31.3]} 12... f5
{[%clk 0:01:53.2]} 13. exf6 {[%clk 0:02:30.4]} 13... Nxf6 {[%clk 0:01:53.2]} 14.
Nfg5 {[%clk 0:02:07.3]} 14... O-O {[%clk 0:01:50.4]} 15. c4 {[%clk 0:01:58.4]}
15... Nxe4 {[%clk 0:01:46.7]} 16. Nxe4 {[%clk 0:01:59.1]} 16... d5 {[%clk
0:01:47.4]} 17. Ng3 {[%clk 0:01:57.6]} 17... dxc4 {[%clk 0:01:35.4]} 18. dxc4
{[%clk 0:01:58.1]} 18... Qd3 {[%clk 0:01:30.1]} 19. Bc3 {[%clk 0:01:48.7]} 19...
bxc4 {[%clk 0:01:27.6]} 20. bxc4 {[%clk 0:01:50.1]} 20... Qxc4 {[%clk
0:01:26.3]} 21. Re1 {[%clk 0:01:14.9]} 21... Qd5 {[%clk 0:01:13.3]} 22. Qxd5
{[%clk 0:01:15]} 22... Bxd5 {[%clk 0:01:13.6]} 23. Ne4 {[%clk 0:01:02.2]} 23...
c4 {[%clk 0:01:05.7]} 24. h3 {[%clk 0:01:02.1]} 24... Rf4 {[%clk 0:01:00.6]} 25.
f3 {[%clk 0:00:58.2]} 25... Rff8 {[%clk 0:00:55.2]} 26. Bd4 {[%clk 0:00:51.1]}
26... Rfd8 {[%clk 0:00:53]} 27. Rad1 {[%clk 0:00:50.4]} 27... Bb4 {[%clk
0:00:49]} 28. Nc3 {[%clk 0:00:50.4]} 28... Kf7 {[%clk 0:00:40.6]} 29. Bf2 {[%clk
0:00:45.2]} 29... Rd7 {[%clk 0:00:35.5]} 30. Rd4 {[%clk 0:00:43.6]} 30... Bxc3
{[%clk 0:00:28.3]} 31. bxc3 {[%clk 0:00:44.7]} 31... a5 {[%clk 0:00:29.6]} 32.
Ra1 {[%clk 0:00:39.1]} 32... a4 {[%clk 0:00:28.9]} 33. Ra3 {[%clk 0:00:39.5]}
33... Rb7 {[%clk 0:00:29]} 34. Rd1 {[%clk 0:00:40]} 34... Rb3 {[%clk 0:00:28.6]}
35. Rda1 {[%clk 0:00:41.1]} 35... Bc6 {[%clk 0:00:27.1]} 36. Bc5 {[%clk
0:00:41.7]} 36... Rd8 {[%clk 0:00:26.4]} 37. Bd4 {[%clk 0:00:39.1]} 37... g5
{[%clk 0:00:21.2]} 38. Rxa4 {[%clk 0:00:40]} 38... Bxa4 {[%clk 0:00:20.6]} 39.
Rxa4 {[%clk 0:00:41.9]} 39... Rc8 {[%clk 0:00:19.3]} 40. Ra7+ {[%clk 0:00:42.1]}
40... Kg8 {[%clk 0:00:14.3]} 41. Rg7+ {[%clk 0:00:42.2]} 41... Kf8 {[%clk
0:00:15.5]} 42. Rxh7 {[%clk 0:00:43.1]} 42... Rc6 {[%clk 0:00:15.6]} 43. Rg7
{[%clk 0:00:43.2]} 43... Rb5 {[%clk 0:00:15.2]} 44. Ra7 {[%clk 0:00:39.8]} 44...
Rd5 {[%clk 0:00:15.7]} 45. Kf2 {[%clk 0:00:39.6]} 45... e5 {[%clk 0:00:13.6]}
46. Be3 {[%clk 0:00:40.6]} 46... Rd3 {[%clk 0:00:14.4]} 47. Ra3 {[%clk
0:00:39.8]} 47... Rg6 {[%clk 0:00:13.7]} 48. Bc5+ {[%clk 0:00:37.8]} 48... Ke8
{[%clk 0:00:14.2]} 49. Ra8+ {[%clk 0:00:38.8]} 49... Kd7 {[%clk 0:00:14.5]} 50.
Ra7+ {[%clk 0:00:39.8]} 50... Kc8 {[%clk 0:00:14]} 51. Bb4 {[%clk 0:00:40.3]}
51... Rc6 {[%clk 0:00:12.3]} 52. Ra5 {[%clk 0:00:40.8]} 52... Rd2+ {[%clk
0:00:11]} 53. Kg3 {[%clk 0:00:40.4]} 53... Rb2 {[%clk 0:00:11.4]} 54. Rxe5
{[%clk 0:00:39.5]} 54... Rxb4 {[%clk 0:00:11]} 55. cxb4 {[%clk 0:00:40]} 55...
c3 {[%clk 0:00:12.5]} 56. Re1 {[%clk 0:00:40.8]} 56... c2 {[%clk 0:00:13.8]} 57.
Rc1 {[%clk 0:00:41]} 57... Rc4 {[%clk 0:00:11.2]} 58. f4 {[%clk 0:00:36.3]}
58... gxf4+ {[%clk 0:00:10.5]} 59. Kf3 {[%clk 0:00:37.4]} 59... Kd7 {[%clk
0:00:10.9]} 60. h4 {[%clk 0:00:38.6]} 60... Ke6 {[%clk 0:00:11.7]} 61. b5 {[%clk
0:00:39.4]} 61... Kf5 {[%clk 0:00:12]} 62. b6 {[%clk 0:00:40.3]} 62... Rc3+
{[%clk 0:00:12.7]} 63. Kf2 {[%clk 0:00:41.2]} 63... Kg4 {[%clk 0:00:13.9]} 64.
b7 {[%clk 0:00:41]} 64... Rb3 {[%clk 0:00:14.9]} 65. Rxc2 {[%clk 0:00:41.5]}
65... Rxb7 {[%clk 0:00:15.6]} 66. Rc4 {[%clk 0:00:40.7]} 66... Rb2+ {[%clk
0:00:16.1]} 67. Kg1 {[%clk 0:00:41.7]} 67... Kg3 {[%clk 0:00:16.6]} 68. Rc3+
{[%clk 0:00:42.3]} 68... Kxh4 {[%clk 0:00:17.3]} 69. Kh2 {[%clk 0:00:42.2]}
69... Kg4 {[%clk 0:00:17.7]} 1/2-1/2